{"text_format":"3","workbook":"xlsx","n_sheets":2,"sheets":["POČETAK","ALATKA ZA BUDŽET"],"not_rendered":{"defined_names":2},"read":"whole","date_system":"1900"}

{"sheet":"POČETAK","index":0,"n_rows":7,"n_cols":2,"rows_kept":7}
[null,"OSNOVNI PODACI O OVOM PREDLOŠKU"]
[null,"Pratite početnu investiciju u veb sajt, njegove pogodnosti i troškovi pomoću ove alatka za budžet veb sajta."]
[null,"Popunite ime preduzeća i datum."]
[null,"Unesite detalje u tabele da biste automatski izračunali ukupne vrednosti i metrika procene."]
[null,"Beleška:  "]
[null,"Dodatna uputstva navedena su u koloni A na radnom listu „ALATKA ZA BUDŽET“. Taj tekst je namerno skriven. Da biste uklonili tekst, izaberite kolonu A, a zatim izaberite stavku „IZBRIŠI“. Da biste otkrili tekst, izaberite kolonu A, a zatim promenite boju fonta."]
[null,"Da biste saznali više o tabelama na radnom listu, pritisnite taster SHIFT, a zatim unutar tabele pritisnite taster F10, izaberite opciju „TABELA“, a zatim stavku „ALTERNATIVNI TEKST“."]

{"sheet":"ALATKA ZA BUDŽET","index":1,"n_rows":43,"n_cols":6,"rows_kept":43,"merged":[[14,1,14,5],[22,1,22,5],[30,1,30,5],[38,1,38,5]]}
["Na ovom radnom listu napravite budžet za veb sajt. Korisna uputstva o tome kako da koristite ovaj radni list nalaze se u ćelijama u ovoj koloni. Pritisnite strelicu nadole da biste počeli."]
["Unesite ime preduzeća u ćeliju sa desne strane.","Ime preduzeća"]
["Naslov ovog radnog lista nalazi se u ćeliji sa desne strane.","Alatka za budžet veb sajta"]
["Datum unesite u ćeliju sa desne strane.","Datum"]
["Savet se nalazi u ćeliji sa desne strane.","Sive ćelije sadrže izračunavanja koja ne bi trebalo da menjate."]
["Unesite detalje u tabelu „Ocena“ počevši od ćelije sa desne strane. Sledeće uputstvo se nalazi u ćeliji A10.","Podaci o preduzeću","Ocena"]
[null,"Neophodna rentabilnost",{"v":0.1,"d":"10%"}]
[null,"Poreska stopa",{"v":0.3,"d":"30%"}]
[]
["Unesite detalje u tabelu „Početna investicija“ počevši od ćelije sa desne strane. Sledeće uputstvo se nalazi u ćeliji A16.","Početna investicija u veb sajt","GODINA","1","2","3"]
[null,"Hardver (npr. serveri)",{"v":25000,"d":"25,000.00 RSD"}]
[null,"Softver (npr. softver kataloga e-trgovine)",{"v":15000,"d":"15,000.00 RSD"}]
[null,"Razvoj (npr. dizajn i razvoj sajta od strane nezavisnog proizvođača)",{"v":150000,"d":"150,000.00 RSD"}]
[null,"Ukupne početne investicije",{"$f":"SUBTOTAL(109,PočetnaInvesticija[GODINA])","v":{"v":190000,"d":"190,000.00 RSD"}}]
[]
["Unesite detalje u tabelu „Pogodnosti“ počevši od ćelije sa desne strane. Sledeće uputstvo se nalazi u ćeliji A24.","Pogodnosti veb sajta","GODINA","1","2","3"]
[null,"Direktna prodaja",null,{"v":15000,"d":"15,000.00 RSD"},{"v":50000,"d":"50,000.00 RSD"},{"v":75000,"d":"75,000.00 RSD"}]
[null,"Inkrementalna prodaja proistekla iz poboljšane efikasnosti promocije/prodavca",null,{"v":25000,"d":"25,000.00 RSD"},{"v":25000,"d":"25,000.00 RSD"},{"v":25000,"d":"25,000.00 RSD"}]
[null,"Inkrementalna prodaja proistekla iz povećanog učešća partnera",null,{"v":25000,"d":"25,000.00 RSD"},{"v":25000,"d":"25,000.00 RSD"},{"v":25000,"d":"25,000.00 RSD"}]
[null,"Smanjeni putni troškovi",null,{"v":25000,"d":"25,000.00 RSD"},{"v":25000,"d":"25,000.00 RSD"},{"v":25000,"d":"25,000.00 RSD"}]
[null,"Smanjeni troškovi korisničke službe",null,{"v":50000,"d":"50,000.00 RSD"},{"v":50000,"d":"50,000.00 RSD"},{"v":50000,"d":"50,000.00 RSD"}]
[null,"Ukupne pogodnosti",null,{"$f":"SUBTOTAL(109,Pogodnosti[1])","v":{"v":140000,"d":"140,000.00 RSD"}},{"$f":"SUBTOTAL(109,Pogodnosti[2])","v":{"v":175000,"d":"175,000.00 RSD"}},{"$f":"SUBTOTAL(109,Pogodnosti[3])","v":{"v":200000,"d":"200,000.00 RSD"}}]
[]
["Unesite detalje u tabelu „Troškovi“ počevši od ćelije sa desne strane. Vrednosti se automatski izračunavaju u ćelijama koje sadrže formule. Sledeće uputstvo se nalazi u ćeliji A32.","Troškovi (osim početnih kapitalnih investicija)","GODINA","1","2","3"]
[null,"Cena prodaje",null,{"v":7500,"d":"7,500.00 RSD"},{"v":25000,"d":"25,000.00 RSD"},{"v":37500,"d":"37,500.00 RSD"}]
[null,"Održavanje",null,{"v":15000,"d":"15,000.00 RSD"},{"v":15000,"d":"15,000.00 RSD"},{"v":15000,"d":"15,000.00 RSD"}]
[null,"Upravljanje projektima, korisnička podrška",null,{"v":35000,"d":"35,000.00 RSD"},{"v":35000,"d":"35,000.00 RSD"},{"v":35000,"d":"35,000.00 RSD"}]
[null,"Oglašavanje na mreži, registracija pretraživača",null,{"v":10000,"d":"10,000.00 RSD"},{"v":10000,"d":"10,000.00 RSD"},{"v":10000,"d":"10,000.00 RSD"}]
[null,"Ispravka kapitalnih izdataka (izračunavanje se vrši na trogodišnjem periodu)",null,{"$f":"PočetnaInvesticija[[#Totals],[GODINA]]/3","v":{"v":63333.333333333336,"d":"63,333.33 RSD"}},{"$f":"PočetnaInvesticija[[#Totals],[GODINA]]/3","v":{"v":63333.333333333336,"d":"63,333.33 RSD"}},{"$f":"PočetnaInvesticija[[#Totals],[GODINA]]/3","v":{"v":63333.333333333336,"d":"63,333.33 RSD"}}]
[null,"Ukupni troškovi",null,{"$f":"SUBTOTAL(109,Troškovi[1])","v":{"v":130833.33333333334,"d":"130,833.33 RSD"}},{"$f":"SUBTOTAL(109,Troškovi[2])","v":{"v":148333.33333333334,"d":"148,333.33 RSD"}},{"$f":"SUBTOTAL(109,Troškovi[3])","v":{"v":160833.33333333334,"d":"160,833.33 RSD"}}]
[]
["Vrednosti se automatski izračunavaju u tabeli „Ukupne vrednosti“ počevši od ćelije sa desne strane. Sledeće uputstvo se nalazi u ćeliji A40.","UkupneVrednosti","GODINA","1","2","3"]
[null,"Neto pogodnosti (troškovi)",null,{"$f":"Pogodnosti[[#Totals],[1]]-Troškovi[[#Totals],[1]]","v":{"v":9166.666666666657,"d":"9,166.67 RSD"}},{"$f":"Pogodnosti[[#Totals],[2]]-Troškovi[[#Totals],[2]]","v":{"v":26666.666666666657,"d":"26,666.67 RSD"}},{"$f":"Pogodnosti[[#Totals],[3]]-Troškovi[[#Totals],[3]]","v":{"v":39166.66666666666,"d":"39,166.67 RSD"}}]
[null,"Porez",null,{"$f":"D33*PoreskaStopa","v":{"v":2749.999999999997,"d":"2,750.00 RSD"}},{"$f":"E33*PoreskaStopa","v":{"v":7999.999999999996,"d":"8,000.00 RSD"}},{"$f":"F33*PoreskaStopa","v":{"v":11749.999999999996,"d":"11,750.00 RSD"}}]
[null,"Vrednost bez poreza",null,{"$f":"D33-D34","v":{"v":6416.666666666661,"d":"6,416.67 RSD"}},{"v":18666.66666666666,"d":"18,666.67 RSD"},{"v":27416.66666666666,"d":"27,416.67 RSD"}]
[null,"Vraćena ispravka",null,{"$f":"D29","v":{"v":63333.333333333336,"d":"63,333.33 RSD"}},{"$f":"E29","v":{"v":63333.333333333336,"d":"63,333.33 RSD"}},{"$f":"F29","v":{"v":63333.333333333336,"d":"63,333.33 RSD"}}]
[null,"Tok novca",{"$f":"-PočetnaInvesticija[[#Totals],[GODINA]]","v":{"v":-190000,"d":"-190,000.00 RSD"}},{"$f":"D35+D36","v":{"v":69750,"d":"69,750.00 RSD"}},{"v":82000,"d":"82,000.00 RSD"},{"v":90750,"d":"90,750.00 RSD"}]
[null,"Kumulativni tok novca",{"$f":"C37","v":{"v":-190000,"d":"-190,000.00 RSD"}},{"$f":"C38+D37","v":{"v":-120250,"d":"-120,250.00 RSD"}},{"v":-38250,"d":"-38,250.00 RSD"},{"v":52500,"d":"52,500.00 RSD"}]
[]
["Metrika procene se automatski izračunava u tabeli „Metrika“ počevši od ćelije sa desne strane.","Metrika procene","Vrednosti"]
[null,"Sadašnja neto vrednost (NPV)",{"$f":"C37+(NPV(Rentabilnost,D37:F37))","v":{"v":9359.504132231377,"d":"9,359.50 RSD"}}]
[null,"Unutrašnja stopa rentabilnosti (IRR)",{"$f":"IRR(C37:F37)","v":{"v":0.12655165144706393,"d":"12.66%"}}]
[null,"Period isplate (u godinama)",{"$f":"IF(F38<=0,\"Premašuje 3 godine\",IF(E38<=0,(F37-F38)/F37+2,IF(D38<=0,(E37-E38)/E37+1,IF(C38<=0,(D37-D38)/D37,\"NA\"))))","v":{"v":2.4214876033057853,"d":"2.42"}}]